bitfinex/quotes_SOLUSD_20250406
["timestamp","ask_amount","ask_price","bid_price","bid_amount"]
[1743929164450,98.59334713,119.08,119.05,0.063]
[1743929165057,104.47174713,119.08,119.05,0.063]
[1743929165743,16.79334713,119.07,119.05,0.063]
[1743929165944,42.79334713,119.06,119.05,0.063]
[1743929167561,48.67264713,119.06,119.05,0.063]
[1743929172250,81.8,119.08,119.05,0.063]
[1743929172446,16.79334713,119.07,119.05,0.063]
[1743929176638,22.67234713,119.07,119.05,0.063]
[1743929178365,16.79334713,119.07,119.05,0.063]
[1743929178545,104.50194713,119.08,119.05,0.063]
[1743929179065,87.7086,119.08,119.05,0.063]
[1743929179243,81.83,119.08,119.06,0.28432314]
[1743929179443,81.83,119.08,119.06,18.933972]
[1743929181067,0.03,119.08,119.07,0.14216157]
[1743929181749,0.03,119.08,119.07,24.95493357]
[1743929182669,0.03,119.08,119.07,41.7482807]
[1743929184383,0.03,119.08,119.07,50.0267807]
[1743929184567,0.03,119.08,119.07,118.7358805]
[1743929185077,0.03,119.08,119.07,51.56249198]
[1743929185867,0.03,119.09,119.08,39.07613357]
[1743929186081,0.03,119.09,119.08,57.40506302]
[1743929187776,0.03,119.09,119.08,63.28346302]
[1743929188081,0.03,119.09,119.08,26.20579275]
[1743929188375,0.03,119.09,119.08,42.99913988]
[1743929188584,0.03,119.09,119.08,43.28346302]
[1743929190281,0.03,119.09,119.08,26.49011589]
[1743929190479,0.03,119.09,119.08,43.28346302]
[1743929193860,0.03,119.09,119.08,20.61171589]
[1743929194070,0.03,119.09,119.08,0.14216157]
[1743929194896,0.03,119.09,119.08,0.42648471]
[1743929195386,0.03,119.09,119.08,0.14216157]
[1743929195587,0.03,119.09,119.08,0.42648471]
[1743929198892,0.03,119.09,119.08,0.48948471]
[1743929199895,0.03,119.09,119.08,0.20516157]
[1743929199896,16.82334713,119.09,119.08,0.20516157]
[1743929202313,22.70124713,119.09,119.08,0.20516157]
[1743929204400,16.82334713,119.09,119.08,0.20516157]
[1743929204600,0.03,119.09,119.08,0.20516157]
[1743929206017,16.82334713,119.09,119.08,0.063]
[1743929208926,0.03,119.09,119.08,0.063]
[1743929209425,22.70124713,119.09,119.08,0.063]
[1743929210122,5.9079,119.09,119.08,0.063]
[1743929210301,22.70124713,119.09,119.08,0.063]
[1743929210913,16.82334713,119.09,119.08,0.063]
[1743929211613,22.70124713,119.09,119.08,0.063]
[1743929214733,16.82334713,119.09,119.08,0.063]
[1743929214902,0.03,119.09,119.08,19.13913357]
[1743929215933,0.03,119.09,119.08,25.01753357]
[1743929218045,0.03,119.09,119.08,41.8108807]
[1743929220833,0.03,119.09,119.08,238.1908807]
[1743929221799,0.03,119.09,119.08,41.8108807]
[1743929222405,0.03,119.09,119.08,25.01753357]
[1743929222608,0.03,119.09,119.08,41.8108807]
[1743929223228,0.03,119.09,119.08,238.1908807]
[1743929225950,0.03,119.09,119.08,221.39753357]
[1743929227533,0.03,119.09,119.08,215.51913357]
[1743929228848,16.82334713,119.09,119.08,196.58516157]
[1743929229154,16.82334713,119.09,119.08,196.86948471]
[1743929230132,0.03,119.09,119.08,196.86948471]
[1743929234280,0.03,119.09,119.08,204.08948471]
[1743929235249,16.82334713,119.09,119.08,204.08948471]
[1743929240123,0.03,119.09,119.08,204.08948471]
[1743929240460,16.82334713,119.09,119.08,204.08948471]
[1743929240781,22.70124713,119.09,119.08,204.08948471]
[1743929241688,22.70124713,119.09,119.08,0.063]
[1743929241876,30.52254713,119.09,119.08,0.063]
[1743929252567,26.0,119.07,119.06,7.22]
[1743929252775,109.96673565,119.07,119.05,0.063]
[1743929253072,16.79334713,119.03,119.02,7.22]
[1743929254867,22.67414713,119.03,119.02,7.22]
[1743929256265,16.79334713,119.03,119.02,7.22]
[1743929256442,16.79334713,119.04,119.03,0.14216157]
[1743929256646,16.79334713,119.04,119.03,0.42648471]
[1743929257157,22.67364713,119.04,119.03,0.42648471]
[1743929259166,22.67364713,119.04,119.02,7.283]
[1743929259369,16.79334713,119.03,119.02,7.70948471]
[1743929260254,22.67414713,119.03,119.02,7.70948471]
[1743929262182,16.79334713,119.03,119.02,7.70948471]
[1743929264784,16.79334713,119.03,119.02,0.48948471]
[1743929265960,42.79334713,119.03,119.02,0.48948471]
[1743929266285,16.79334713,119.04,119.03,0.42648471]
[1743929267986,16.79334713,119.05,119.03,0.42648471]
[1743929269985,22.67324713,119.05,119.03,0.42648471]
[1743929272094,16.79334713,119.04,119.03,0.42648471]
[1743929272264,16.79334713,119.04,119.03,0.48948471]
[1743929274282,87.6795,119.06,119.03,0.48948471]
[1743929274496,16.79334713,119.05,119.03,0.48948471]
[1743929277799,98.59334713,119.06,119.03,0.063]
[1743929277998,81.8,119.06,119.03,0.063]
[1743929282101,81.8,119.06,119.04,0.42648471]
[1743929283505,81.8,119.06,119.04,6.30648471]
[1743929283688,5.908,119.09,119.04,6.30648471]
[1743929283689,16.79334713,119.08,119.04,6.30648471]
[1743929283890,16.79334713,119.08,119.04,23.09983184]
[1743929284095,0.03,119.09,119.06,0.42648471]
[1743929285484,0.03,119.09,119.06,6.30578471]
[1743929286407,16.82334713,119.09,119.06,6.30578471]
[1743929286587,16.79334713,119.08,119.04,0.14216157]
[1743929286784,16.79334713,119.08,119.05,0.28432314]
[1743929286985,16.79334713,119.08,119.05,0.14216157]
[1743929287480,16.79334713,119.08,119.05,0.28432314]
[1743929289906,16.79334713,119.07,119.05,0.28432314]
[1743929290580,22.67224713,119.07,119.05,0.28432314]
[1743929291206,16.79334713,119.07,119.05,0.28432314]
[1743929292006,5.8786,119.08,119.05,0.28432314]
[1743929292007,16.79334713,119.06,119.05,0.28432314]
[1743929292521,16.79334713,119.06,119.04,196.58216157]
[1743929292822,16.79334713,119.05,119.04,196.44]
[1743929294610,22.67314713,119.05,119.04,196.44]
[1743929296614,22.67314713,119.05,119.03,0.063]
[1743929296802,16.79334713,119.04,119.03,0.063]
[1743929297811,22.67364713,119.04,119.03,0.063]
[1743929298010,5.8803,119.04,119.03,0.063]
[1743929298191,22.67364713,119.04,119.03,0.063]
[1743929298391,16.79334713,119.04,119.03,0.063]
[1743929299321,22.67364713,119.04,119.03,0.063]
[1743929301402,5.8803,119.04,119.03,0.063]
[1743929301716,22.67364713,119.04,119.03,0.063]
[1743929303405,22.67364713,119.04,119.03,7.70948471]
[1743929306115,5.8803,119.04,119.03,7.70948471]
[1743929306299,5.91,119.05,119.03,7.70948471]
[1743929306506,16.79334713,119.04,119.03,7.70948471]
[1743929308018,16.82334713,119.05,119.03,7.70948471]
[1743929308207,0.03,119.05,119.04,0.42648471]
[1743929309618,48.70314713,119.05,119.03,7.283]
[1743929310316,42.82334713,119.05,119.04,0.42648471]
[1743929312422,31.9098,119.05,119.04,0.42648471]
[1743929312625,48.70314713,119.05,119.04,0.42648471]
[1743929313029,48.70314713,119.05,119.03,7.283]
[1743929313234,16.79334713,119.04,119.03,7.70948471]
[1743929314834,22.67364713,119.04,119.03,7.70948471]
[1743929316706,16.79334713,119.04,119.03,7.70948471]
[1743929317124,22.67364713,119.04,119.03,7.70948471]
[1743929318640,5.8803,119.04,119.03,7.70948471]
[1743929318837,22.67364713,119.04,119.03,7.70948471]
[1743929319036,16.79334713,119.04,119.03,7.70948471]
[1743929319203,16.79334713,119.04,119.03,7.283]
[1743929319404,16.79334713,119.04,119.03,0.063]
[1743929321939,22.67364713,119.04,119.03,0.063]
[1743929323750,0.03,119.05,119.03,0.063]
[1743929323922,16.82334713,119.05,119.04,7.26]
[1743929324124,0.03,119.05,119.04,7.68648471]
[1743929326839,16.82334713,119.05,119.04,7.26]
[1743929327041,16.82334713,119.05,119.04,7.68648471]
[1743929328944,0.03,119.05,119.04,7.68648471]
[1743929330945,16.82334713,119.05,119.04,7.68648471]
[1743929333323,16.82334713,119.05,119.04,7.54432314]
[1743929333627,22.70314713,119.05,119.03,0.063]
[1743929333837,0.03,119.05,119.03,0.48948471]
[1743929334045,26.0,119.04,119.03,0.48948471]
[1743929337752,0.03,119.05,119.03,0.48948471]
[1743929338171,0.03,119.05,119.03,6.37028471]
[1743929341063,0.03,119.05,119.03,24.73353184]
[1743929341239,0.03,119.05,119.04,19.07613357]
[1743929341436,0.03,119.05,119.04,35.8694807]
[1743929342032,0.03,119.05,119.04,19.07613357]
[1743929342953,0.03,119.05,119.04,24.95643357]
[1743929344153,0.03,119.05,119.04,41.7497807]
[1743929344754,0.03,119.05,119.04,238.2297807]
[1743929346649,0.03,119.05,119.04,221.43643357]
[1743929347343,0.03,119.05,119.04,204.22648471]
[1743929347653,0.03,119.05,119.04,196.90648471]
[1743929347954,0.03,119.05,119.04,204.20648471]
[1743929348452,0.03,119.05,119.04,210.08678471]
[1743929349475,0.03,119.05,119.04,13.60678471]
[1743929350853,0.03,119.05,119.04,13.66978471]
[1743929352871,0.03,119.05,119.04,32.31943357]
[1743929359275,0.03,119.05,119.04,7.78948471]
[1743929361977,0.03,119.05,119.04,13.66978471]
[1743929365476,0.03,119.05,119.04,32.31943357]
[1743929365679,0.03,119.05,119.04,49.1127807]
[1743929366964,0.03,119.05,119.04,32.31943357]
[1743929368678,0.03,119.05,119.04,228.75943357]
[1743929370271,0.03,119.05,119.04,247.0642807]
[1743929377870,0.03,119.05,119.04,245.5527807]
[1743929378075,16.82334713,119.05,119.04,203.94516157]
[1743929378391,16.82334713,119.05,119.04,196.92948471]
[1743929378585,16.82334713,119.05,119.04,204.22948471]
[1743929378781,16.82334713,119.05,119.04,203.803]
[1743929379991,22.70314713,119.05,119.04,203.803]
[1743929381167,22.70314713,119.05,119.04,196.503]
[1743929381367,22.70314713,119.05,119.04,203.803]
[1743929382364,16.82334713,119.05,119.04,203.803]
[1743929384398,0.03,119.05,119.04,204.22948471]
[1743929386597,16.82334713,119.05,119.04,204.22948471]
[1743929387790,16.82334713,119.05,119.04,7.78948471]
[1743929390402,22.70314713,119.05,119.04,7.78948471]
[1743929391508,22.70314713,119.05,119.04,7.363]
[1743929394900,16.82334713,119.05,119.04,7.363]
[1743929395906,0.03,119.05,119.04,7.78948471]
[1743929396302,16.82334713,119.05,119.04,7.78948471]
[1743929396501,22.70314713,119.05,119.04,7.78948471]
[1743929398590,22.70314713,119.05,119.04,7.363]
[1743929408329,5.9098,119.05,119.04,7.363]
[1743929408532,0.03,119.05,119.04,26.43913357]
[1743929408740,0.03,119.05,119.04,32.31943357]
[1743929410836,0.03,119.05,119.04,7.78948471]
[1743929411021,16.82334713,119.05,119.04,7.363]
[1743929412738,22.70314713,119.05,119.04,7.363]
[1743929413937,22.70314713,119.05,119.04,0.063]
[1743929414127,5.9098,119.05,119.04,0.063]
[1743929414325,22.70314713,119.05,119.04,0.063]
[1743929418524,16.82334713,119.05,119.04,0.063]
[1743929419424,22.70314713,119.05,119.04,0.063]
[1743929419632,22.70314713,119.05,119.04,7.303]
[1743929424552,22.70314713,119.05,119.04,7.303]
[1743929430359,0.03,119.05,119.04,7.72948471]
[1743929431551,0.03,119.05,119.04,7.70948471]
[1743929432645,0.03,119.05,119.04,32.23943357]
[1743929433131,0.03,119.05,119.04,26.35913357]
[1743929435440,0.03,119.05,119.04,7.70948471]
[1743929439570,0.03,119.05,119.04,49.0327807]
[1743929439775,0.03,119.05,119.04,50.6694807]
[1743929454992,0.03,119.05,119.04,247.0894807]
[1743929460593,0.03,119.05,119.04,222.49481043]
[1743929460797,16.82334713,119.05,119.04,196.62516157]
[1743929461097,16.82334713,119.05,119.04,204.12948471]
[1743929461294,16.82334713,119.05,119.04,203.84516157]
[1743929461504,16.82334713,119.05,119.04,204.12948471]
[1743929461798,16.82334713,119.05,119.04,203.84516157]
[1743929462299,16.82334713,119.05,119.04,204.12948471]
[1743929462597,0.03,119.05,119.04,203.84516157]
[1743929462973,22.70314713,119.05,119.04,196.90948471]
[1743929463177,22.70314713,119.05,119.04,203.703]
[1743929463385,22.70314713,119.05,119.04,196.483]
[1743929463677,22.70314713,119.05,119.04,203.703]
[1743929466287,16.82334713,119.05,119.04,204.12948471]
[1743929466480,0.03,119.05,119.04,204.12948471]
[1743929467603,16.82334713,119.05,119.04,204.12948471]
[1743929470199,22.70314713,119.05,119.04,203.703]
[1743929473805,22.70314713,119.05,119.04,204.12948471]
[1743929474307,0.03,119.05,119.04,204.12948471]
[1743929483816,0.03,119.05,119.04,7.70948471]
[1743929484308,16.82334713,119.05,119.04,0.48948471]
[1743929484495,16.82334713,119.05,119.04,7.70948471]
[1743929489616,22.70314713,119.05,119.04,7.70948471]
[1743929492118,16.82334713,119.05,119.04,7.70948471]
[1743929492302,0.03,119.05,119.04,7.70948471]
[1743929496521,0.03,119.05,119.04,32.23943357]
[1743929498826,0.03,119.05,119.04,26.35913357]
[1743929499726,0.070266,119.05,119.04,26.35913357]
[1743929511529,16.86361313,119.05,119.04,0.48948471]
[1743929511732,16.86361313,119.05,119.04,7.70948471]
[1743929513845,22.74341313,119.05,119.04,7.70948471]
[1743929514943,16.86361313,119.05,119.04,7.70948471]
[1743929515144,0.070266,119.05,119.04,7.70948471]
[1743929522148,16.86361313,119.05,119.04,7.70948471]
[1743929523322,0.070266,119.05,119.04,7.70948471]
[1743929526939,0.070266,119.05,119.04,26.35913357]
[1743929527133,0.070266,119.05,119.04,49.0327807]
[1743929527437,0.070266,119.05,119.04,32.23943357]
[1743929530154,0.070266,119.05,119.04,26.35913357]
[1743929531856,0.070266,119.05,119.04,7.42516157]
[1743929532035,16.86361313,119.05,119.04,0.20516157]
[1743929532235,16.86361313,119.05,119.04,7.42516157]
[1743929532436,0.070266,119.05,119.04,7.70948471]
[1743929539967,0.070266,119.05,119.04,26.35913357]
[1743929542262,0.070266,119.05,119.04,32.23943357]
[1743929543565,0.070266,119.05,119.04,49.0327807]
[1743929555980,0.070266,119.05,119.04,245.4527807]
[1743929563862,0.070266,119.05,119.04,228.65943357]
[1743929564287,0.070266,119.05,119.04,245.4527807]
[1743929565764,0.070266,119.05,119.04,247.0634807]
[1743929568070,0.070266,119.05,119.04,248.59957901]
[1743929568266,0.03,119.09,119.05,39.07613357]
[1743929568473,0.03,119.09,119.08,35.8694807]
[1743929568677,0.03,119.09,119.08,43.0694807]
[1743929569465,0.03,119.09,119.08,26.27613357]
[1743929571490,0.03,119.09,119.08,32.15453357]
[1743929572070,0.03,119.09,119.08,48.9478807]
[1743929574972,0.03,119.09,119.08,245.3278807]
[1743929580401,0.03,119.09,119.08,246.9904807]
[1743929583013,0.03,119.1,119.09,39.07613357]
[1743929583217,0.03,119.1,119.09,57.40493407]
[1743929584208,0.03,119.11,119.1,19.07613357]
[1743929584396,0.03,119.11,119.1,37.40480515]
[1743929585919,0.03,119.11,119.1,43.28220515]
[1743929589818,81.8,119.16,119.12,19.07613357]
[1743929589983,81.8,119.16,119.14,0.42648471]
[1743929590319,1.6702,119.17,119.14,0.42648471]
[1743929590485,1.6702,119.17,119.15,18.64964886]
[1743929590686,0.03,119.17,119.16,0.42648471]
[1743929591313,0.03,119.17,119.16,196.74648471]
[1743929592498,0.03,119.17,119.16,219.41423184]
[1743929594131,0.03,119.17,119.16,238.0638807]
[1743929603146,0.03,119.17,119.16,221.27053357]
[1743929603853,0.03,119.17,119.16,238.0638807]
[1743929605742,0.03,119.17,119.16,221.27053357]
[1743929606045,0.03,119.17,119.16,238.0638807]
[1743929609754,0.03,119.17,119.16,221.27053357]
[1743929609953,0.03,119.17,119.16,238.0638807]
[1743929613544,0.03,119.17,119.16,245.2638807]
[1743929613750,0.03,119.17,119.16,246.79843208]
[1743929614333,0.03,119.17,119.16,230.00508495]
[1743929614544,0.03,119.17,119.16,246.79843208]
[1743929615552,25.01974713,119.23,119.2,0.42648471]
[1743929615750,8.2264,119.23,119.22,0.28432314]
[1743929617027,25.01974713,119.23,119.22,0.28432314]
[1743929619933,1.634,119.23,119.22,0.28432314]
[1743929620641,0.03,119.23,119.22,0.28432314]
[1743929621253,0.03,119.23,119.22,19.07613357]
[1743929625368,0.03,119.23,119.22,24.94753357]
[1743929629166,8.2348,119.29,119.22,24.94753357]
[1743929629366,0.03,119.29,119.24,19.07613357]
[1743929629569,0.03,119.29,119.26,0.42648471]
[1743929629949,0.03,119.29,119.26,19.07613357]
[1743929630365,6.4587,119.29,119.26,19.07613357]
[1743929630667,1.5953,119.28,119.26,0.42648471]
[1743929631046,1.5953,119.28,119.26,0.14216157]
[1743929631570,7.4642,119.28,119.26,0.42648471]
[1743929631960,5.8689,119.28,119.26,0.42648471]
[1743929632163,12.3268,119.29,119.26,19.07613357]
[1743929632465,6.4587,119.29,119.26,19.07613357]
[1743929634268,0.03,119.29,119.26,24.94543357]
[1743929637075,0.03,119.29,119.26,19.07613357]
[1743929654879,0.03,119.29,119.26,24.94543357]
[1743929655263,0.03,119.29,119.26,19.07613357]
[1743929659480,0.03,119.29,119.26,0.42648471]
[1743929659870,0.03,119.29,119.27,7.2]
[1743929660259,0.03,119.29,119.28,0.14216157]
[1743929662976,0.03,119.29,119.27,7.2]
[1743929663985,0.03,119.29,119.28,0.14216157]
[1743929667485,0.03,119.29,119.28,0.42648471]
[1743929668066,0.03,119.29,119.28,24.94463357]
[1743929668505,0.03,119.29,119.28,26.58343357]
[1743929671291,0.03,119.35,119.32,19.07613357]
[1743929671482,81.83,119.35,119.33,196.06]
[1743929671791,81.83,119.35,119.34,7.2]
[1743929672590,87.6951,119.35,119.34,7.2]
[1743929675985,81.83,119.35,119.34,7.2]
[1743929676795,87.6951,119.35,119.34,7.2]
[1743929677195,81.83,119.35,119.34,7.34216157]
[1743929677574,81.83,119.35,119.34,7.62648471]
[1743929677575,0.03,119.35,119.34,7.62648471]
[1743929678195,0.03,119.35,119.34,32.14163357]
[1743929679272,0.03,119.4,119.35,19.07613357]
[1743929680084,0.03,119.4,119.35,20.60824201]
[1743929680392,0.03,119.4,119.37,19.07613357]
[1743929680591,0.03,119.4,119.39,0.14216157]
[1743929680982,0.03,119.4,119.36,19.07613357]
[1743929681189,0.03,119.4,119.39,7.32216157]
[1743929682702,0.03,119.4,119.39,7.60648471]
[1743929689004,0.03,119.4,119.39,26.25613357]
[1743929689189,0.03,119.4,119.39,7.60648471]
[1743929698726,0.03,119.4,119.39,32.11923357]
[1743929699026,0.03,119.4,119.39,7.60648471]
[1743929702223,0.03,119.4,119.39,7.32216157]
[1743929702414,0.03,119.4,119.39,0.14216157]
[1743929702603,0.03,119.4,119.39,7.32216157]
[1743929715636,0.03,119.4,119.39,7.18]
[1743929715844,0.03,119.4,119.39,7.60648471]
[1743929718345,0.03,119.4,119.39,7.32216157]
[1743929721744,0.03,119.4,119.38,195.9]
[1743929721933,107.8,119.39,119.38,195.9]
[1743929722651,113.6631,119.39,119.38,195.9]
[1743929723154,113.6631,119.39,119.37,7.18]
[1743929723314,115.2527,119.39,119.37,7.18]
[1743929723712,26.0,119.36,119.35,0.063]
[1743929723951,26.0,119.36,119.35,7.243]
[1743929724777,31.8646,119.36,119.35,7.243]
[1743929725635,31.8646,119.36,119.35,0.063]
[1743929726656,46.5261,119.36,119.33,195.9]
[1743929728057,31.8646,119.36,119.33,195.9]
[1743929730869,46.5261,119.36,119.33,195.9]
[1743929731270,81.8,119.35,119.33,195.9]
[1743929732041,81.8,119.35,119.34,0.14216157]
[1743929732256,81.8,119.35,119.34,0.42648471]
[1743929733173,81.8,119.35,119.34,6.29198471]
[1743929733344,81.8,119.35,119.34,24.94163357]
[1743929734572,81.8,119.35,119.34,25.00463357]
[1743929737179,5.8631,119.39,119.34,25.00463357]
[1743929739792,87.6927,119.4,119.36,0.14216157]
[1743929739956,87.6927,119.4,119.38,0.14216157]
[1743929743775,26.0,119.38,119.37,7.18]
[1743929744080,26.0,119.38,119.37,7.32216157]
[1743929746779,31.8636,119.38,119.37,7.32216157]
[1743929747565,26.0,119.38,119.37,7.32216157]
[1743929754278,5.8632,119.39,119.37,7.32216157]
[1743929754577,87.6928,119.4,119.37,7.32216157]
[1743929757369,81.83,119.4,119.38,0.14216157]
[1743929758383,87.6927,119.4,119.38,0.14216157]
[1743929758884,81.83,119.4,119.38,0.14216157]
[1743929759682,87.6927,119.4,119.38,0.14216157]
[1743929760485,87.6927,119.4,119.37,7.18]
[1743929764983,102.3493,119.4,119.37,7.18]
[1743929765182,26.0,119.38,119.37,7.18]
[1743929766492,31.8636,119.38,119.37,7.18]
[1743929772600,81.83,119.4,119.38,0.14216157]
[1743929772787,81.83,119.4,119.38,0.42648471]
[1743929773383,87.6927,119.4,119.38,0.14216157]
[1743929773880,87.6927,119.4,119.37,7.18]
[1743929773881,26.0,119.38,119.37,7.18]
[1743929774580,31.8636,119.38,119.37,7.18]
[1743929775607,5.8636,119.38,119.37,7.18]
[1743929775905,31.8636,119.38,119.37,7.18]
[1743929776908,81.8,119.37,119.35,7.243]
[1743929777083,81.8,119.37,119.36,7.18]
[1743929778306,87.6641,119.37,119.36,7.18]
[1743929781617,87.6641,119.37,119.35,0.063]
[1743929781914,87.6641,119.37,119.35,7.243]
[1743929782615,81.8,119.36,119.34,196.003]
[1743929784009,5.8651,119.35,119.34,196.003]
[1743929786416,5.8651,119.35,119.34,203.183]
[1743929787921,5.8651,119.35,119.34,203.32516157]
[1743929790305,5.8651,119.35,119.34,7.38516157]
[1743929790624,5.8651,119.35,119.34,7.243]
[1743929790800,5.8651,119.35,119.34,7.38516157]
[1743929793726,5.8651,119.35,119.34,7.243]
[1743929813338,5.8951,119.35,119.34,7.243]
[1743929814734,5.8951,119.35,119.34,0.063]
[1743929814942,26.0,119.32,119.31,7.18]
[1743929815146,31.8665,119.32,119.31,7.18]
[1743929815744,81.8,119.34,119.31,7.32216157]
[1743929815924,87.6658,119.34,119.31,7.32216157]
[1743929822455,87.6658,119.34,119.32,0.14216157]
[1743929822748,87.6658,119.34,119.33,7.18]
[1743929826757,81.8,119.34,119.33,7.32216157]
[1743929827055,81.8,119.34,119.33,7.60648471]
[1743929827263,81.8,119.34,119.33,9.21168471]
[1743929828657,81.8,119.34,119.33,205.23168471]
[1743929838661,81.8,119.34,119.33,229.74733357]
[1743929839869,81.83,119.34,119.33,229.74733357]
[1743929842866,0.03,119.34,119.33,229.74733357]
[1743929843067,0.03,119.34,119.33,223.88133357]
[1743929843644,0.03,119.34,119.33,205.23168471]
[1743929844475,0.03,119.34,119.33,203.62648471]
[1743929844669,0.03,119.34,119.33,196.16216157]
[1743929844903,0.03,119.34,119.33,203.34216157]
[1743929845853,5.8955,119.34,119.33,203.34216157]
[1743929846870,5.8955,119.34,119.33,196.02]
[1743929847169,5.8955,119.34,119.33,203.2]
[1743929848886,5.8955,119.34,119.33,196.02]
[1743929849179,5.8955,119.34,119.33,203.2]
[1743929852677,5.8955,119.34,119.33,7.18]
[1743929854173,5.8955,119.34,119.33,7.243]
[1743929854661,5.8955,119.34,119.33,0.063]
[1743929871288,81.737,119.3,119.29,0.063]
[1743929871875,81.737,119.3,119.29,7.243]
[1743929873301,81.737,119.3,119.29,7.38516157]
[1743929879207,87.6045,119.3,119.29,7.243]
[1743929881107,81.737,119.3,119.29,7.243]
[1743929883913,81.737,119.3,119.29,7.38516157]
[1743929889931,81.737,119.3,119.29,7.243]
[1743929892120,81.737,119.3,119.29,7.38516157]
[1743929899632,81.737,119.3,119.29,13.53748471]
[1743929900902,81.737,119.3,119.29,15.13478471]
[1743929902424,0.03,119.31,119.3,0.14216157]
[1743929902935,0.03,119.31,119.3,19.07613357]
[1743929904639,0.03,119.31,119.3,24.94363357]
[1743929911236,0.03,119.34,119.3,39.61253357]
[1743929911419,0.03,119.34,119.3,41.14528413]
[1743929912036,0.03,119.34,119.33,45.07613357]
[1743929912342,0.0001,119.34,119.33,53.78663357]
[1743929913438,0.0001,119.34,119.33,59.65263357]
[1743929917437,0.0001,119.34,119.33,79.65263357]
[1743929917653,0.0001,119.34,119.33,81.18499879]
[1743929918239,0.03,119.35,119.34,19.07613357]
[1743929918552,0.03,119.35,119.34,20.60837039]
[1743929918930,0.03,119.35,119.34,26.47387039]
[1743929919446,0.03,119.35,119.34,222.41387039]
[1743929922563,0.03,119.37,119.36,26.42648471]
[1743929925653,0.03,119.37,119.36,32.29108471]
[1743929925963,0.03,119.4,119.39,20.14216157]
[1743929926131,0.03,119.4,119.39,47.7677287]
[1743929926331,0.03,119.43,119.4,19.07613357]
[1743929926561,0.03,119.43,119.4,20.60760042]
[1743929926859,0.03,119.43,119.42,0.42648471]
[1743929927249,0.0001,119.43,119.42,45.07613357]
[1743929927560,0.0001,119.43,119.42,50.93773357]
[1743929928132,0.03,119.46,119.42,122.18493357]
[1743929928333,0.03,119.46,119.45,44.79181043]
[1743929928557,0.03,119.46,119.45,45.07613357]
[1743929928930,0.03,119.46,119.45,66.60695937]
[1743929929245,0.03,119.49,119.47,0.14216157]
[1743929929429,0.03,119.49,119.48,7.58648471]
[1743929929634,0.03,119.49,119.48,13.44518471]
[1743929929854,0.03,119.49,119.48,32.09483357]
[1743929934561,0.03,119.49,119.48,26.23613357]
[1743929935138,0.03,119.49,119.48,32.09483357]
[1743929938964,0.03,119.49,119.48,227.83483357]
[1743929940453,0.03,119.49,119.48,214.81613357]
[1743929940660,0.03,119.49,119.48,203.32648471]
[1743929940966,0.03,119.49,119.48,203.04216157]
[1743929941168,0.03,119.49,119.48,195.74]
[1743929941467,0.03,119.49,119.48,202.9]
[1743929942348,5.8882,119.49,119.48,202.9]
[1743929942670,0.03,119.49,119.48,202.9]
[1743929953276,0.03,119.49,119.48,7.16]
[1743929953571,0.03,119.49,119.48,7.30216157]
[1743929959996,0.03,119.49,119.48,7.16]
[1743929960164,16.71562895,119.49,119.48,7.16]
[1743929960669,16.71562895,119.49,119.46,0.20516157]
[1743929960874,16.68562895,119.48,119.47,7.16]
[1743929961178,16.71562895,119.49,119.47,7.16]
[1743929962183,0.03,119.49,119.47,7.16]
[1743929962381,16.71562895,119.49,119.47,7.16]
[1743929962570,0.03,119.49,119.47,7.16]
[1743929965084,98.42262895,119.48,119.46,0.063]
[1743929965292,16.68562895,119.47,119.46,0.063]
[1743929965585,16.68562895,119.47,119.46,7.223]